fUSD/lending_fUSD_20240210
["ID","MTS","AMOUNT","RATE_DAILY","PERIOD"]
[313676312,1707574250715,-500.0,0.00023088,2]
[313676313,1707574250724,-500.0,0.00023088,2]
[313676314,1707574250733,-500.0,0.00023088,7]
[313676315,1707574250743,-189.19,0.00023088,2]
[313676316,1707574250752,-234.35749533,0.00023088,2]
[313676317,1707574250762,-500.0,0.00023088,2]
[313676318,1707574250771,-500.0,0.00023088,2]
[313676319,1707574250780,-1569.64,0.00023088,2]
[313676320,1707574250790,-500.0,0.00023088,2]
[313676321,1707574250799,-500.0,0.00023088,2]
[313676322,1707574250809,-500.0,0.00023088,2]
[313676323,1707574250819,-500.0,0.00023088,2]
[313676324,1707574250828,-500.0,0.00023088,2]
[313676325,1707574250838,-500.0,0.00023088,2]
[313676326,1707574250847,-500.0,0.00023088,2]
[313676327,1707574250856,-500.0,0.00023088,2]
[313676328,1707574250868,-500.0,0.00023088,2]
[313676329,1707574250878,-690.69,0.00023088,2]
[313676330,1707574250887,-500.0,0.00023088,2]
[313676331,1707574250896,-725.42,0.00023088,2]
[313676332,1707574250907,-500.0,0.00023088,2]
[313676333,1707574250917,-500.0,0.00023088,2]
[313676334,1707574250927,-500.0,0.00023088,2]
[313676335,1707574250946,-281.05320928,0.00023088,2]
[313676336,1707574250956,-500.0,0.00023088,2]
[313676337,1707574250966,-500.0,0.00023088,2]
[313676338,1707574250976,-728.69,0.00023088,2]
[313676339,1707574250985,-500.0,0.00023088,2]
[313676340,1707574250995,-650.93,0.00023088,2]
[313676341,1707574251005,-1766.25,0.00023088,2]
[313676342,1707574251014,-500.0,0.00023088,2]
[313676343,1707574251024,-500.0,0.00023088,2]
[313676344,1707574251035,-500.0,0.00023088,2]
[313676345,1707574251045,-183.93402485,0.00023088,2]
[313676346,1707574251056,-500.0,0.00023088,2]
[313676347,1707574251066,-150.0,0.00023088,2]
[313676348,1707574251076,-500.0,0.00023088,2]
[313676349,1707574251086,-594.57,0.00023088,2]
[313676350,1707574251097,-500.0,0.00023088,2]
[313676351,1707574251108,-500.0,0.00023088,2]
[313676352,1707574251118,-500.0,0.00023088,2]
[313676353,1707574251129,-500.0,0.00023088,2]
[313676354,1707574251139,-500.0,0.00023088,2]
[313676355,1707574251149,-500.0,0.00023088,2]
[313676356,1707574251159,-461.78564784,0.00023088,2]
[313676357,1707574251170,-500.0,0.00023088,2]
[313676358,1707574251180,-500.0,0.00023088,2]
[313676359,1707574251190,-473.13414781,0.00023088,2]
[313676360,1707574251200,-442.63553686,0.00023088,2]
[313676361,1707574251210,-500.0,0.00023088,2]
[313676362,1707574251220,-159.03872335,0.00023088,2]
[313676363,1707574251230,-500.0,0.00023088,2]
[313676364,1707574251239,-530.39,0.00023088,2]
[313676365,1707574251249,-500.0,0.00023088,2]
[313676366,1707574251260,-500.0,0.00023088,2]
[313676367,1707574251271,-500.0,0.00023088,2]
[313676368,1707574251281,-527.47,0.00023088,2]
[313676369,1707574251291,-390.68,0.00023088,2]
[313676370,1707574251300,-514.69,0.00023088,2]
[313676371,1707574251310,-500.0,0.00023088,2]
[313676372,1707574251320,-500.0,0.00023088,2]
[313676373,1707574251330,-550.41,0.00023088,2]
[313676374,1707574251339,-500.0,0.00023088,2]
[313676375,1707574251349,-500.0,0.00023088,2]
[313676376,1707574251359,-3260.3,0.00023088,2]
[313676377,1707574251369,-587.09,0.00023088,2]
[313676378,1707574251378,-1101.01,0.00023088,2]
[313676379,1707574251388,-500.0,0.00023088,2]
[313676380,1707574251398,-1350.38,0.00023088,2]
[313676381,1707574251408,-1027.58,0.00023088,2]
[313676382,1707574251418,-500.0,0.00023088,2]
[313676383,1707574251428,-500.0,0.00023088,2]
[313676384,1707574251438,-500.0,0.00023088,2]
[313676385,1707574251447,-500.0,0.00023088,2]
[313676386,1707574251457,-500.0,0.00023088,2]
[313676387,1707574251468,-500.0,0.00023088,2]
[313676388,1707574251478,-500.0,0.00023088,2]
[313676389,1707574251488,-500.0,0.00023088,2]
[313676390,1707574251497,-500.0,0.00023088,2]
[313676391,1707574251508,-11125.45,0.00023088,2]
[313676392,1707574251518,-500.0,0.00023088,2]
[313676393,1707574251528,-500.0,0.00023088,2]
[313676394,1707574251538,-500.0,0.00023088,2]
[313676395,1707574251548,-552.87,0.00023088,2]
[313676396,1707574251558,-2170.27,0.00023088,2]
[313676397,1707574251568,-500.0,0.00023088,2]
[313676398,1707574251577,-188.7077744,0.00023088,2]
[313676399,1707574251587,-1482.5,0.00023088,2]
[313676400,1707574251597,-1321.31,0.00023088,2]
[313676401,1707574251607,-1437.89,0.00023088,2]
[313676402,1707574251617,-500.0,0.00023088,2]
[313676403,1707574251627,-500.0,0.00023088,2]
[313676404,1707574251636,-989.82,0.00023088,2]
[313676405,1707574251647,-500.0,0.00023088,2]
[313676406,1707574251657,-597.95,0.00023088,2]
[313676407,1707574251667,-1909.18,0.00023088,2]
[313676408,1707574251678,-647.12,0.00023088,2]
[313676409,1707574251688,-500.0,0.00023088,2]
[313676410,1707574251698,-589.61,0.00023088,2]
[313676411,1707574251709,-500.0,0.00023088,2]
[313676412,1707574251720,-998.15,0.00023088,5]
[313676413,1707574251731,-2371.12,0.00023088,2]
[313676414,1707574251742,-500.0,0.00023088,2]
[313676415,1707574251753,-1347.24,0.00023088,2]
[313676416,1707574251763,-2054.78,0.00023088,2]
[313676417,1707574251776,-3967.07,0.00023088,2]
[313676418,1707574251786,-1618.29,0.00023088,2]
[313676419,1707574251797,-898.36,0.00023088,2]
[313676420,1707574251807,-1588.29,0.00023088,2]
[313676421,1707574251817,-1247.09,0.00023088,2]
[313676422,1707574251828,-500.0,0.00023088,2]
[313676423,1707574251838,-918.14,0.00023088,2]
[313676424,1707574251848,-341.95544011,0.00023088,2]
[313676425,1707574251857,-2818.91,0.00023088,2]
[313676426,1707574251870,-500.0,0.00023088,2]
[313676427,1707574251879,-2329.93,0.00023088,2]
[313676428,1707574251889,-500.0,0.00023088,2]
[313676429,1707574251899,-500.0,0.00023088,2]
[313676430,1707574251910,-491.64766535,0.00023088,2]
[313676431,1707574251919,-1534.72,0.00023088,2]
[313676432,1707574251930,-854.59,0.00023088,2]
[313676433,1707574251939,-500.0,0.00023088,2]
[313676434,1707574251950,-957.2,0.00023088,2]
[313676435,1707574251959,-500.0,0.00023088,2]
[313676436,1707574251969,-716.28,0.00023088,2]
[313676437,1707574251979,-973.69,0.00023088,2]
[313676438,1707574251989,-5653.82,0.00023088,2]
[313676439,1707574251999,-393.83805869,0.00023088,2]
[313676440,1707574252009,-500.0,0.00023088,2]
[313676441,1707574252018,-882.22,0.00023088,2]
[313676442,1707574252028,-1623.83,0.00023088,2]
[313676443,1707574252037,-500.0,0.00023088,2]
[313676444,1707574252046,-729.82,0.00023088,2]
[313676445,1707574252056,-817.33,0.00023088,2]
[313676446,1707574252066,-500.0,0.00023088,2]
[313676447,1707574252075,-1270.18,0.00023088,2]
[313676448,1707574252085,-1668.37,0.00023088,2]
[313676449,1707574252095,-1505.82,0.00023088,2]
[313676450,1707574252106,-267.66,0.00023088,2]
[313676451,1707574252116,-500.0,0.00023088,2]
[313676452,1707574252126,-500.0,0.00023088,2]
[313676453,1707574252146,-500.0,0.00023088,2]
[313676454,1707574252157,-500.0,0.00023088,2]
[313676455,1707574252167,-2500.0,0.00023111,2]
[313676456,1707574252177,-4645.02922791,0.0002313,2]
[313676457,1707574252188,-6048.2404805,0.00023184,2]
[313676458,1707574252197,-30884.906,0.00023184,2]
[313676459,1707574252207,-30884.906,0.00023184,2]
[313676460,1707574252217,-24056.2450256,0.00023184,2]
[313676461,1707574252227,-878.2133651,0.00023184,2]
[313676462,1707574252237,-150.0,0.00023199,2]
[313676463,1707574252248,-867874.33764544,0.000232,2]
[313676464,1707574252258,-8302.18,0.00023227,2]
[313676465,1707574252268,-1140.33,0.00023227,2]
[313676466,1707574252279,-8411.1,0.00023227,2]
[313676467,1707574252289,-500.0,0.00023227,2]
[313676468,1707574252299,-500.0,0.00023227,2]
[313676469,1707574252309,-2145.73,0.00023227,2]
[313676470,1707574252319,-853.49,0.00023227,2]
[313676471,1707574252329,-7722.57,0.00023227,2]
[313676472,1707574252339,-500.0,0.00023227,2]
[313676473,1707574252349,-500.0,0.00023227,2]
[313676474,1707574252358,-500.0,0.00023227,2]
[313676475,1707574252368,-620.92,0.00023227,2]
[313676476,1707574252378,-586.97,0.00023227,2]
[313676477,1707574252388,-500.0,0.00023227,2]
[313676478,1707574252397,-866.64,0.00023227,2]
[313676479,1707574252407,-500.0,0.00023361,2]
[313676480,1707574252417,-1723.79,0.00023361,2]
[313676481,1707574252426,-1523.13,0.00023361,2]
[313676482,1707574252437,-11523.32,0.00023361,2]
[313676483,1707574252447,-829.36,0.00023361,2]
[313676484,1707574252457,-500.0,0.00023361,2]
[313676485,1707574252467,-528.81284307,0.00023361,2]
[313676486,1707574252477,-6068.79,0.00023361,2]
[313676487,1707574252487,-500.0,0.00023361,2]
[313676488,1707574252497,-500.0,0.00023361,2]
[313676489,1707574252507,-500.0,0.00023361,2]
[313676490,1707574252517,-583.83,0.00023361,2]
[313676491,1707574252526,-1103.65,0.00023361,2]
[313676492,1707574252536,-2088.97,0.00023361,2]
[313676493,1707574252546,-4410.53,0.00023361,2]
[313676494,1707574252556,-500.0,0.00023361,2]
[313676495,1707574252565,-2300.86,0.00023361,2]
[313676496,1707574252575,-706.48,0.00023361,2]
[313676497,1707574252587,-500.0,0.00023361,2]
[313676498,1707574252597,-1111.1,0.00023361,2]
[313676499,1707574252607,-500.0,0.00023361,2]
[313676500,1707574252616,-500.0,0.00023361,2]
[313676501,1707574252626,-4192.44,0.00023361,2]
[313676502,1707574252636,-500.0,0.00023361,2]
[313676503,1707574252646,-1461.55,0.00023361,2]
[313676504,1707574252655,-1156.45,0.00023361,2]
[313676505,1707574252665,-500.0,0.00023361,2]
[313676506,1707574252675,-500.0,0.00023361,2]
[313676507,1707574252686,-526.96,0.00023361,2]
[313676508,1707574252696,-4621.17,0.00023361,2]
[313676509,1707574252706,-556.98,0.00023361,2]
[313676510,1707574252716,-500.0,0.00023361,2]
[313676511,1707574252725,-8652.9,0.00023361,2]
[313676512,1707574252735,-647.45293736,0.00023361,2]
[313676513,1707574252745,-500.0,0.00023361,2]
[313676514,1707574252755,-500.0,0.00023361,2]
[313676515,1707574252765,-500.0,0.00023361,2]
[313676516,1707574252774,-500.0,0.00023361,2]
[313676517,1707574252784,-1507.4,0.00023361,2]
[313676518,1707574252794,-1344.82,0.00023361,2]
[313676519,1707574252803,-2326.79,0.00023361,2]
[313676520,1707574252814,-500.0,0.00023361,2]
[313676521,1707574252823,-500.0,0.00023361,2]
[313676522,1707574252833,-1393.4,0.00023361,2]
[313676523,1707574252843,-1818.92,0.00023361,2]
[313676524,1707574252854,-674.57,0.00023361,2]
[313676525,1707574252867,-2027.14,0.00023361,2]
[313676526,1707574252877,-500.0,0.00023361,2]
[313676527,1707574252887,-930.03,0.00023361,5]
[313676528,1707574252897,-2829.1,0.00023361,2]
[313676529,1707574252907,-1455.5,0.00023361,2]
[313676530,1707574252917,-500.0,0.00023361,2]
[313676531,1707574252927,-500.0,0.00023361,2]
[313676532,1707574252938,-500.0,0.00023361,2]
[313676533,1707574252948,-500.0,0.00023361,2]
[313676534,1707574252958,-1720.68,0.00023361,2]
[313676535,1707574252968,-555.72,0.00023361,2]
[313676536,1707574252978,-3972.0,0.00023361,2]
[313676537,1707574252988,-2184.99,0.00023361,2]
[313676538,1707574252999,-500.0,0.00023361,2]
[313676539,1707574253009,-1966.35,0.00023361,2]
[313676540,1707574253019,-1817.93,0.00023361,2]
[313676541,1707574253029,-835.04,0.00023361,2]
[313676542,1707574253039,-587.81,0.00023361,2]
[313676543,1707574253049,-3333.4,0.00023361,2]
[313676544,1707574253058,-500.0,0.00023362,2]
[313676545,1707574253068,-500.0,0.00023362,2]
[313676546,1707574253078,-280.30290933,0.00023362,2]
[313676547,1707574253088,-500.0,0.00023362,2]
[313676548,1707574253098,-500.0,0.00023362,2]
[313676549,1707574253108,-500.0,0.00023362,2]
[313676550,1707574253118,-500.0,0.00023362,2]
[313676551,1707574253128,-613.71,0.00023362,2]
[313676552,1707574253138,-420.99049458,0.00023362,2]
[313676553,1707574253148,-613.58288659,0.00023362,2]
[313676554,1707574253159,-500.0,0.00023362,2]
[313676555,1707574253390,-740.88,0.00023362,2]
[313676556,1707574253400,-500.0,0.00023362,2]
[313676557,1707574253410,-500.0,0.00023362,2]
[313676558,1707574253419,-500.0,0.00023362,2]
[313676559,1707574253429,-500.0,0.00023362,2]
[313676560,1707574253438,-500.0,0.00023362,2]
[313676561,1707574253447,-500.0,0.00023362,2]
[313676562,1707574253457,-500.0,0.00023362,2]
[313676563,1707574253466,-500.0,0.00023362,2]
[313676564,1707574253476,-500.0,0.00023362,2]
[313676565,1707574253486,-500.0,0.00023362,2]
[313676566,1707574253495,-500.0,0.00023362,2]
[313676567,1707574253505,-500.0,0.00023362,7]
[313676568,1707574253515,-628.69196251,0.00023362,2]
[313676569,1707574253524,-500.0,0.00023362,2]
[313676570,1707574253534,-1569.64,0.00023362,2]
[313676571,1707574253543,-500.0,0.00023362,2]
[313676572,1707574253553,-500.0,0.00023362,2]
[313676573,1707574253563,-500.0,0.00023362,2]
[313676574,1707574253572,-500.0,0.00023362,2]
[313676575,1707574253583,-500.0,0.00023362,2]
[313676576,1707574253607,-500.0,0.00023362,2]
[313676577,1707574253629,-500.0,0.00023362,2]
[313676578,1707574253650,-500.0,0.00023362,2]
[313676579,1707574253673,-500.0,0.00023362,2]
[313676580,1707574253694,-690.69,0.00023362,2]
[313676581,1707574253734,-500.0,0.00023362,2]
[313676582,1707574253743,-725.42,0.00023362,2]
[313676583,1707574253753,-500.0,0.00023362,2]
[313676584,1707574253762,-255.42,0.00023362,2]
[313676585,1707574253770,-500.0,0.00023362,2]
[313676586,1707574253779,-500.0,0.00023362,2]
[313676587,1707574253789,-500.0,0.00023362,2]
[313676588,1707574253799,-728.69,0.00023362,2]
[313676589,1707574253808,-500.0,0.00023362,2]
[313676590,1707574253817,-650.93,0.00023362,2]
[313676591,1707574253826,-1766.25,0.00023362,2]
[313676592,1707574253836,-500.0,0.00023362,2]
[313676593,1707574253845,-500.0,0.00023362,2]
[313676594,1707574253855,-500.0,0.00023362,2]
[313676595,1707574253866,-500.0,0.00023362,2]
[313676596,1707574253875,-150.0,0.00023362,2]
[313676597,1707574253885,-500.0,0.00023362,2]
[313676598,1707574253894,-594.57,0.00023362,2]
[313676599,1707574253905,-500.0,0.00023362,2]
[313676600,1707574253914,-500.0,0.00023362,2]
[313676601,1707574253923,-500.0,0.00023362,2]
[313676602,1707574253933,-500.0,0.00023362,2]
[313676603,1707574253943,-500.0,0.00023362,2]
[313676604,1707574253952,-542.16643502,0.00023362,2]
[313676605,1707574253962,-422.85,0.00023362,2]
[313676606,1707574253971,-500.0,0.00023362,2]
[313676607,1707574253981,-500.0,0.00023362,2]
[313676608,1707574253990,-500.0,0.00023362,2]
[313676609,1707574253999,-530.39,0.00023362,2]
[313676610,1707574254009,-500.0,0.00023362,2]
[313676611,1707574254018,-500.0,0.00023362,2]
[313676612,1707574254028,-283.82698913,0.00023362,2]
[313676613,1707574254037,-500.0,0.00023362,2]
[313676614,1707574254047,-500.0,0.00023362,2]
[313676615,1707574254056,-500.0,0.00023362,2]
[313676616,1707574254066,-500.0,0.00023362,2]
[313676617,1707574254075,-3260.3,0.00023362,2]
[313676618,1707574254085,-587.09,0.00023362,2]
[313676619,1707574254094,-1101.01,0.00023362,2]
[313676620,1707574254103,-500.0,0.00023362,2]
[313676621,1707574254113,-1350.38,0.00023362,2]
[313676622,1707574254122,-1027.58,0.00023362,2]
[313676623,1707574254132,-500.0,0.00023362,2]
[313676624,1707574254141,-500.0,0.00023362,2]
[313676625,1707574254151,-500.0,0.00023362,2]
[313676626,1707574254160,-500.0,0.00023362,2]
[313676627,1707574254170,-500.0,0.00023362,2]
[313676628,1707574254180,-500.0,0.00023362,2]
[313676629,1707574254189,-500.0,0.00023362,2]
[313676630,1707574254198,-500.0,0.00023362,2]
[313676631,1707574254208,-500.0,0.00023362,2]
[313676632,1707574254217,-11125.45,0.00023362,2]
[313676633,1707574254226,-500.0,0.00023362,2]
[313676634,1707574254235,-500.0,0.00023362,2]
[313676635,1707574254244,-500.0,0.00023362,2]
[313676636,1707574254253,-2170.27,0.00023362,2]
[313676637,1707574254263,-500.0,0.00023362,2]
[313676638,1707574254275,-1482.5,0.00023362,2]
[313676639,1707574254285,-1321.31,0.00023362,2]
[313676640,1707574254295,-1437.89,0.00023362,2]
[313676641,1707574254305,-500.0,0.00023362,2]
[313676642,1707574254314,-500.0,0.00023362,2]
[313676643,1707574254323,-989.82,0.00023362,2]
[313676644,1707574254333,-500.0,0.00023362,2]
[313676645,1707574254343,-597.95,0.00023362,2]
[313676646,1707574254352,-1909.18,0.00023362,2]
[313676647,1707574254362,-647.12,0.00023362,2]
[313676648,1707574254372,-500.0,0.00023362,2]
[313676649,1707574254381,-589.61,0.00023362,2]
[313676650,1707574254390,-500.0,0.00023362,2]
[313676651,1707574254400,-998.15,0.00023362,5]
[313676652,1707574254409,-2371.12,0.00023362,2]
[313676653,1707574254419,-500.0,0.00023362,2]
[313676654,1707574254429,-1347.24,0.00023362,2]
[313676655,1707574254438,-2054.78,0.00023362,2]
[313676656,1707574254447,-3967.07,0.00023362,2]
[313676657,1707574254457,-1618.29,0.00023362,2]
[313676658,1707574254467,-898.36,0.00023362,2]
[313676659,1707574254476,-1588.29,0.00023362,2]
[313676660,1707574254486,-1247.09,0.00023362,2]
[313676661,1707574254495,-500.0,0.00023362,2]
[313676662,1707574254505,-918.14,0.00023362,2]
[313676663,1707574254514,-2818.91,0.00023362,2]
[313676664,1707574254524,-500.0,0.00023362,2]
[313676665,1707574254533,-2329.93,0.00023362,2]
[313676666,1707574254543,-500.0,0.00023362,2]
[313676667,1707574254553,-500.0,0.00023362,2]
[313676668,1707574254562,-1534.72,0.00023362,2]
[313676669,1707574254571,-854.59,0.00023362,2]
[313676670,1707574254580,-500.0,0.00023362,2]
[313676671,1707574254590,-957.2,0.00023362,2]
[313676672,1707574254600,-500.0,0.00023362,2]
[313676673,1707574254609,-716.28,0.00023362,2]
[313676674,1707574254619,-973.69,0.00023362,2]
[313676675,1707574254629,-5653.82,0.00023362,2]
[313676676,1707574254638,-500.0,0.00023362,2]
[313676677,1707574254647,-1623.83,0.00023362,2]
[313676678,1707574254657,-882.22,0.00023362,2]
[313676679,1707574254666,-500.0,0.00023362,2]
[313676680,1707574254675,-729.82,0.00023362,2]
[313676681,1707574254685,-817.33,0.00023362,2]
[313676682,1707574254694,-500.0,0.00023362,2]
[313676683,1707574254704,-1270.18,0.00023362,2]
[313676684,1707574254713,-1668.37,0.00023362,2]
[313676685,1707574254723,-1505.82,0.00023362,2]
[313676686,1707574254733,-500.0,0.00023362,2]
[313676687,1707574254742,-500.0,0.00023362,2]
[313676688,1707574254751,-500.0,0.00023362,2]
[313676689,1707574254760,-500.0,0.00023362,2]
[313676690,1707574254770,-8302.18,0.00023501,2]
[313676691,1707574254779,-1140.33,0.00023501,2]
[313676692,1707574254788,-8411.1,0.00023501,2]
[313676693,1707574254798,-500.0,0.00023501,2]
[313676694,1707574254808,-500.0,0.00023501,2]
[313676695,1707574254817,-2145.73,0.00023501,2]
[313676696,1707574254826,-853.49,0.00023501,2]
[313676697,1707574254835,-7722.57,0.00023501,2]
[313676698,1707574254845,-500.0,0.00023501,2]
[313676699,1707574254855,-500.0,0.00023501,2]
[313676700,1707574254867,-644.32841767,0.00023501,2]
[313676701,1707574254876,-620.92,0.00023501,2]
[313676702,1707574254886,-586.97,0.00023501,2]
[313676703,1707574254895,-500.0,0.00023501,2]
[313676704,1707574254905,-866.64,0.00023501,2]
[313676705,1707574254914,-440.62616254,0.00023521,4]
[313676706,1707574254924,-500.0,0.00023635,2]
[313676707,1707574254933,-1723.79,0.00023635,2]
[313676708,1707574254945,-1523.13,0.00023635,2]
[313676709,1707574254955,-11523.32,0.00023635,2]
[313676710,1707574254964,-829.36,0.00023635,2]
[313676711,1707574254974,-500.0,0.00023635,2]
[313676712,1707574254983,-6068.79,0.00023635,2]
[313676713,1707574254993,-500.0,0.00023635,2]
[313676714,1707574255003,-500.0,0.00023635,2]
[313676715,1707574255012,-500.0,0.00023635,2]
[313676716,1707574255021,-583.83,0.00023635,2]
[313676717,1707574255031,-1103.65,0.00023635,2]
[313676718,1707574255041,-2088.97,0.00023635,2]
[313676719,1707574255051,-4410.53,0.00023635,2]
[313676720,1707574255060,-500.0,0.00023635,2]
[313676721,1707574255070,-2300.86,0.00023635,2]
[313676722,1707574255080,-706.48,0.00023635,2]
[313676723,1707574255089,-500.0,0.00023635,2]
[313676724,1707574255098,-1111.1,0.00023635,2]
[313676725,1707574255107,-500.0,0.00023635,2]
[313676726,1707574255117,-500.0,0.00023635,2]
[313676727,1707574255127,-4192.44,0.00023635,2]
[313676728,1707574255136,-500.0,0.00023635,2]
[313676729,1707574255146,-1461.55,0.00023635,2]
[313676730,1707574255156,-1156.45,0.00023635,2]
[313676731,1707574255165,-500.0,0.00023635,2]
[313676732,1707574255175,-500.0,0.00023635,2]
[313676733,1707574255184,-526.96,0.00023635,2]
[313676734,1707574255194,-4621.17,0.00023635,2]
[313676735,1707574255203,-556.98,0.00023635,2]
[313676736,1707574255212,-500.0,0.00023635,2]
[313676737,1707574255221,-8652.9,0.00023635,2]
[313676738,1707574255231,-500.0,0.00023635,2]
[313676739,1707574255240,-500.0,0.00023635,2]
[313676740,1707574255249,-500.0,0.00023635,2]
[313676741,1707574255258,-500.0,0.00023635,2]
[313676742,1707574255268,-1507.4,0.00023635,2]
[313676743,1707574255277,-1344.82,0.00023635,2]
[313676744,1707574255287,-2326.79,0.00023635,2]
[313676745,1707574255297,-500.0,0.00023635,2]
[313676746,1707574255306,-500.0,0.00023635,2]
[313676747,1707574255316,-1393.4,0.00023635,2]
[313676748,1707574255325,-1818.92,0.00023635,2]
[313676750,1707574255338,-674.57,0.00023635,2]
[313676751,1707574255347,-2027.14,0.00023635,2]
[313676752,1707574255356,-500.0,0.00023635,2]
[313676753,1707574255366,-930.03,0.00023635,5]
[313676754,1707574255375,-2829.1,0.00023635,2]
[313676755,1707574255385,-1455.5,0.00023635,2]
[313676756,1707574255393,-500.0,0.00023635,2]
[313676757,1707574255403,-500.0,0.00023635,2]
[313676758,1707574255412,-500.0,0.00023635,2]
[313676759,1707574255421,-500.0,0.00023635,2]
[313676760,1707574255431,-1720.68,0.00023635,2]
[313676761,1707574255440,-555.72,0.00023635,2]
[313676762,1707574255449,-3972.0,0.00023635,2]
[313676763,1707574255458,-2184.99,0.00023635,2]
[313676764,1707574255468,-500.0,0.00023635,2]
[313676765,1707574255477,-1966.35,0.00023635,2]
[313676766,1707574255486,-1817.93,0.00023635,2]
[313676767,1707574255495,-835.04,0.00023635,2]
[313676768,1707574255506,-587.81,0.00023635,2]
[313676769,1707574255516,-3333.4,0.00023635,2]
[313676770,1707574255526,-500.0,0.00023636,2]
[313676771,1707574255535,-500.0,0.00023636,2]
[313676772,1707574255544,-500.0,0.00023636,2]
[313676773,1707574255556,-311.86888116,0.00023636,2]
[313676774,1707574255566,-500.0,0.00023636,2]
[313676775,1707574255575,-287.39176903,0.00023636,2]
[313676776,1707574255585,-613.71,0.00023636,2]
[313676777,1707574255595,-500.0,0.00023636,2]
[313676778,1707574255604,-740.88,0.00023636,2]
[313676779,1707574255613,-500.0,0.00023636,2]
[313676780,1707574255622,-500.0,0.00023636,2]
[313676781,1707574255632,-500.0,0.00023636,2]
[313676782,1707574255641,-500.0,0.00023636,2]
[313676783,1707574255651,-500.0,0.00023636,2]
[313676784,1707574255661,-500.0,0.00023636,2]
[313676785,1707574255672,-500.0,0.00023636,2]
[313676786,1707574255682,-500.0,0.00023636,2]
[313676787,1707574255691,-500.0,0.00023636,2]
[313676788,1707574255700,-500.0,0.00023636,2]
[313676789,1707574255710,-500.0,0.00023636,2]
[313676790,1707574255720,-500.0,0.00023636,7]
[313676791,1707574255730,-500.0,0.00023636,2]
[313676792,1707574255805,-1569.64,0.00023636,2]
[313676793,1707574255816,-500.0,0.00023636,2]
[313676794,1707574255826,-325.91242844,0.00023636,2]
[313676795,1707574255836,-500.0,0.00023636,2]
[313676796,1707574255846,-500.0,0.00023636,2]
[313676797,1707574255856,-500.0,0.00023636,2]
[313676798,1707574255867,-500.0,0.00023636,2]
[313676799,1707574255877,-500.0,0.00023636,2]
[313676800,1707574255886,-536.60910281,0.00023636,2]
[313676801,1707574255896,-500.0,0.00023636,2]
[313676802,1707574255905,-690.69,0.00023636,2]
[313676803,1707574255915,-500.0,0.00023636,2]
[313676804,1707574255924,-725.42,0.00023636,2]
[313676805,1707574255935,-500.0,0.00023636,2]
[313676806,1707574255945,-500.0,0.00023636,2]
[313676807,1707574255955,-500.0,0.00023636,2]
[313676808,1707574255964,-254.88618473,0.00023636,2]
[313676809,1707574255974,-728.69,0.00023636,2]
[313676810,1707574255982,-500.0,0.00023636,2]
[313676811,1707574255992,-650.93,0.00023636,2]
[313676812,1707574256001,-1766.25,0.00023636,2]